bitfinex/quotes_SOLUSD_20240604
["timestamp","ask_amount","ask_price","bid_price","bid_amount"]
[1717490236673,7.0,165.37,165.33,3.0498324]
[1717490238007,9.2374,165.37,165.33,3.0498324]
[1717490240702,7.0,165.37,165.33,3.0498324]
[1717490242098,9.2373,165.38,165.33,3.0498324]
[1717490242491,7.0,165.37,165.33,3.0498324]
[1717490245280,2.2373,165.38,165.33,3.0498324]
[1717490245481,9.2373,165.38,165.33,3.0498324]
[1717490248014,2.2373,165.38,165.34,2.2377]
[1717490248698,9.2373,165.38,165.34,2.2377]
[1717490249016,2.2373,165.38,165.34,2.2377]
[1717490249200,9.2373,165.38,165.34,2.2377]
[1717490250911,9.2373,165.38,165.33,3.0498324]
[1717490261021,9.2373,165.38,165.34,2.2377]
[1717490261224,2.2373,165.38,165.34,47.2377]
[1717490263624,9.2373,165.38,165.33,3.0499324]
[1717490265423,2.2374,165.37,165.33,3.0499324]
[1717490271736,9.2374,165.37,165.33,3.0499324]
[1717490272042,7.0,165.37,165.33,3.0499324]
[1717490275135,7.0,165.36,165.33,0.8120324]
[1717490275324,2.2374,165.37,165.33,0.8120324]
[1717490275644,7.0,165.36,165.33,0.8120324]
[1717490275845,7.0,165.34,165.33,0.8120324]
[1717490276344,7.0,165.35,165.33,0.8120324]
[1717490277817,9.2376,165.35,165.33,0.8120324]
[1717490278242,4.4745,165.38,165.33,0.8120324]
[1717490278427,7.0,165.34,165.33,0.8120324]
[1717490278746,9.2378,165.34,165.33,0.8120324]
[1717490278948,7.0,165.34,165.33,0.8120324]
[1717490283846,9.2378,165.34,165.33,0.8120324]
[1717490284443,9.2378,165.34,165.26,20.1489]
[1717490284444,2.2383,165.3,165.25,2.239]
[1717490284754,7.0,165.3,165.26,2.2388]
[1717490285359,2.2382,165.31,165.27,2.2387]
[1717490285533,7.0,165.31,165.26,45.0]
[1717490285738,9.2382,165.31,165.27,2.2387]
[1717490286465,9.2382,165.31,165.26,47.2388]
[1717490287339,2.2383,165.3,165.26,47.2388]
[1717490287543,9.2383,165.3,165.26,2.2388]
[1717490288965,7.0,165.3,165.26,2.2388]
[1717490292156,9.2383,165.3,165.26,2.2388]
[1717490295089,7.0,165.3,165.26,2.2388]
[1717490295386,9.2383,165.3,165.26,2.2388]
[1717490297480,9.2383,165.3,165.25,45.0]
[1717490297792,9.2385,165.29,165.25,2.2389]
[1717490298082,7.0,165.29,165.25,2.2389]
[1717490298611,7.0,165.29,165.26,2.2388]
[1717490303901,9.2384,165.3,165.26,2.2388]
[1717490307895,7.0,165.29,165.25,2.2389]
[1717490308890,7.0,165.29,165.26,2.2388]
[1717490315687,7.0,165.28,165.2,4.4792]
[1717490316009,2.2387,165.27,165.23,2.2392]
[1717490316185,9.2387,165.27,165.23,2.2392]
[1717490316385,9.2387,165.27,165.21,8.04803217]
[1717490316580,9.2387,165.27,165.22,2.2394]
[1717490316801,2.2389,165.26,165.22,2.2394]
[1717490317119,7.0,165.26,165.22,2.2394]
[1717490317406,9.2388,165.26,165.22,2.2394]
[1717490318099,7.0,165.26,165.22,2.2394]
[1717490321302,2.2388,165.27,165.23,2.2392]
[1717490323496,2.2388,165.27,165.22,2.2393]
[1717490323901,2.2388,165.27,165.23,2.2392]
[1717490324108,7.0,165.28,165.21,8.04803217]
[1717490324309,2.2385,165.29,165.24,2.239]
[1717490324603,9.2385,165.29,165.24,2.239]
[1717490325328,2.2386,165.28,165.24,2.239]
[1717490327249,9.2385,165.29,165.24,2.239]
[1717490327529,2.2385,165.29,165.24,9.239]
[1717490327697,15.3682,165.33,165.24,7.0]
[1717490327898,9.2383,165.31,165.26,2.2388]
[1717490328436,2.238,165.32,165.27,2.2387]
[1717490328625,9.238,165.32,165.27,2.2387]
[1717490329106,2.2382,165.31,165.27,2.2387]
[1717490329304,2.2382,165.31,165.26,9.2388]
[1717490329935,9.2382,165.31,165.26,2.2388]
[1717490331617,9.2382,165.31,165.27,2.2387]
[1717490334535,7.0,165.31,165.27,2.2387]
[1717490335649,2.2381,165.32,165.27,2.2387]
[1717490335811,7.0,165.31,165.27,2.2387]
[1717490338638,9.2381,165.32,165.27,2.2387]
[1717490338841,2.2381,165.32,165.28,2.2386]
[1717490339030,123.15523774,165.51,165.26,7.0]
[1717490339031,24.50535779,165.38,165.27,7.0]
[1717490339341,7.0,165.34,165.3,2.2382]
[1717490339538,7.0,165.35,165.31,2.2381]
[1717490339710,9.2376,165.35,165.3,2.2383]
[1717490339906,2.2375,165.36,165.31,2.2382]
[1717490340313,2.2373,165.38,165.33,2.2379]
[1717490340541,7.0,165.37,165.32,2.238]
[1717490340752,7.0,165.34,165.27,6.581]
[1717490340921,2.2381,165.32,165.27,9.2386]
[1717490341116,2.2381,165.32,165.27,2.2386]
[1717490341324,2.2381,165.32,165.27,9.2386]
[1717490341532,9.2381,165.32,165.27,2.2386]
[1717490341732,9.2381,165.32,165.28,2.2386]
[1717490341939,7.0,165.32,165.28,2.2386]
[1717490342138,7.0,165.32,165.26,127.17]
[1717490342139,7.0,165.34,165.29,7.0]
[1717490342437,7.0,165.35,165.31,2.2381]
[1717490343446,9.2376,165.35,165.3,2.2382]
[1717490344021,2.2376,165.35,165.3,8.2505]
[1717490344224,9.2376,165.35,165.3,8.2505]
[1717490344940,2.2375,165.36,165.31,2.2381]
[1717490345121,2.2374,165.37,165.32,2.238]
[1717490345317,2.2373,165.38,165.33,2.2379]
[1717490345837,9.2373,165.38,165.33,2.2379]
[1717490348830,2.2374,165.37,165.33,2.2379]
[1717490352273,2.2373,165.38,165.33,2.2379]
[1717490352549,9.2373,165.38,165.33,8.5119]
[1717490352961,9.2374,165.37,165.33,6.274]
[1717490353825,9.2374,165.37,165.32,2.238]
[1717490354049,7.0,165.36,165.32,2.238]
[1717490354631,2.2373,165.38,165.33,2.2379]
[1717490354826,9.2373,165.38,165.33,2.2379]
[1717490356136,2.2373,165.38,165.33,2.2379]
[1717490356542,9.2373,165.38,165.33,2.2379]
[1717490358434,9.2373,165.38,165.33,8.2664]
[1717490358626,11.81134241,165.43,165.33,7.0]
[1717490358826,4.4732,165.43,165.34,7.0]
[1717490359054,9.2369,165.41,165.36,2.2374]
[1717490359948,2.2367,165.42,165.37,2.2373]
[1717490360244,2.2366,165.43,165.38,2.2372]
[1717490360428,9.2366,165.43,165.38,8.6114]
[1717490360623,7.0,165.43,165.38,8.6114]
[1717490361045,9.2366,165.43,165.38,8.6114]
[1717490362539,2.2366,165.43,165.38,8.6114]
[1717490362749,9.2366,165.43,165.38,8.6114]
[1717490364148,2.2365,165.44,165.39,8.774]
[1717490364357,9.2365,165.44,165.39,8.774]
[1717490364652,7.0,165.44,165.39,8.774]
[1717490364851,22.3577,165.53,165.43,2.2364]
[1717490365054,2.236,165.48,165.43,2.2364]
[1717490365277,2.2358,165.49,165.44,2.2364]
[1717490365750,7.0,165.49,165.44,8.5089]
[1717490365979,7.0,165.49,165.45,6.4056]
[1717490366253,2.2357,165.49,165.45,6.4056]
[1717490367466,2.2357,165.49,165.44,7.0]
[1717490367467,2.2359,165.48,165.43,15.8707]
[1717490367759,2.2359,165.48,165.43,8.8707]
[1717490367760,9.2359,165.48,165.43,8.8707]
[1717490368360,2.2359,165.48,165.43,8.8707]
[1717490368538,2.2359,165.48,165.43,15.8707]
[1717490368736,9.2358,165.49,165.43,15.8707]
[1717490369774,9.2358,165.49,165.43,8.8707]
[1717490369957,9.2358,165.49,165.43,15.8707]
[1717490370843,9.2358,165.49,165.44,2.2364]
[1717490371157,9.2356,165.5,165.45,8.8802]
[1717490371346,2.2356,165.5,165.45,8.8802]
[1717490371557,2.2356,165.5,165.45,15.8802]
[1717490373556,2.2356,165.5,165.46,6.0351]
[1717490374671,2.2357,165.49,165.46,6.0351]
[1717490376159,9.2357,165.5,165.46,6.2402]
[1717490377740,9.2357,165.5,165.46,6.1675]
[1717490377949,7.0,165.51,165.47,6.1675]
[1717490378553,9.2355,165.51,165.47,6.1675]
[1717490379658,9.2355,165.51,165.46,2.2361]
[1717490379854,2.2355,165.51,165.46,2.2361]
[1717490380056,9.2355,165.51,165.46,2.2361]
[1717490380254,2.2356,165.5,165.45,2.2362]
[1717490380466,7.0,165.49,165.45,2.2362]
[1717490381765,7.0,165.49,165.46,2.2361]
[1717490382064,7.0,165.5,165.46,2.2361]
[1717490385054,9.2356,165.5,165.46,2.2361]
[1717490385257,7.0,165.49,165.46,2.2361]
[1717490385457,7.0,165.49,165.45,2.2362]
[1717490386581,7.0,165.49,165.46,2.2361]
[1717490386998,7.0,165.5,165.46,2.2361]
[1717490387276,7.0,165.5,165.47,2.2359]
[1717490387465,13.74868598,165.57,165.46,2.2361]
[1717490387466,9.2355,165.51,165.46,2.2361]
[1717490393970,7.0,165.5,165.46,2.2361]
[1717490394279,9.2356,165.5,165.45,2.2362]
[1717490395181,7.0,165.49,165.45,2.2362]
[1717490395566,7.0,165.48,165.45,2.2362]
[1717490395895,7.0,165.47,165.43,2.2365]
[1717490396090,7.0,165.47,165.44,2.2364]
[1717490396296,7.0,165.46,165.44,2.2364]
[1717490396481,7.0,165.47,165.44,2.2364]
[1717490396992,7.0,165.48,165.44,2.2364]
[1717490397168,9.2358,165.49,165.44,2.2363]
[1717490400976,7.0,165.48,165.44,2.2363]
[1717490401196,2.2358,165.49,165.44,2.2363]
[1717490401491,7.0,165.48,165.44,2.2363]
[1717490401700,11.4708,165.52,165.41,24.4735]
[1717490401701,7.0,165.45,165.42,2.2366]
[1717490401902,7.0,165.45,165.41,2.2368]
[1717490402104,7.0,165.44,165.4,2.2369]
[1717490402895,7.0,165.44,165.41,2.2368]
[1717490403091,7.0,165.45,165.41,2.2368]
[1717490403794,7.0,165.44,165.41,2.2368]
[1717490406497,7.0,165.45,165.42,2.2367]
[1717490406805,7.0,165.46,165.42,2.2367]
[1717490407878,7.0,165.45,165.42,2.2367]
[1717490408687,7.0,165.45,165.41,2.2368]
[1717490409572,9.2362,165.46,165.41,2.2368]
[1717490409769,7.0,165.46,165.42,2.2367]
[1717490411284,7.0,165.48,165.44,2.2364]
[1717490411603,9.2359,165.49,165.44,2.2364]
[1717490411790,2.2359,165.48,165.43,2.2365]
[1717490412099,9.2359,165.48,165.43,2.2365]
[1717490413218,10.5473,165.53,165.43,7.0]
[1717490413422,9.2357,165.5,165.45,2.2362]
[1717490416495,7.0,165.49,165.45,2.2362]
[1717490417780,2.2357,165.5,165.45,2.2362]
[1717490418080,7.0,165.49,165.45,2.2362]
[1717490419993,9.2357,165.5,165.45,2.2362]
[1717490421710,2.2357,165.5,165.45,2.2362]
[1717490421911,9.2357,165.5,165.46,2.2361]
[1717490422089,2.2357,165.5,165.46,2.2361]
[1717490422416,13.4102,165.55,165.46,7.0]
[1717490422585,2.2354,165.52,165.47,9.236]
[1717490423820,2.2353,165.53,165.48,2.2358]
[1717490424120,9.2353,165.53,165.48,2.2358]
[1717490424721,7.0,165.53,165.48,2.2358]
[1717490425015,2.2353,165.52,165.48,2.2358]
[1717490425790,9.2353,165.52,165.48,2.2358]
[1717490429413,7.0,165.5,165.44,7.0]
[1717490429613,7.0,165.48,165.44,2.2363]
[1717490429999,7.0,165.48,165.45,2.2363]
[1717490430199,7.0,165.49,165.45,2.2363]
[1717490430528,7.0,165.47,165.43,2.2365]
[1717490430699,7.0,165.46,165.43,2.2365]
[1717490431510,7.0,165.45,165.42,2.2367]
[1717490431721,7.0,165.45,165.41,2.2367]
[1717490432101,7.0,165.45,165.39,14.66612559]
[1717490432610,7.0,165.44,165.39,7.66612559]
[1717490432804,7.0,165.44,165.4,2.2369]
[1717490434115,7.0,165.43,165.37,1.0518372]
[1717490434322,7.0,165.42,165.37,20.0]
[1717490435122,7.0,165.42,165.39,2.237]
[1717490435728,7.0,165.41,165.39,2.237]
[1717490435932,7.0,165.42,165.39,2.237]
[1717490436433,7.0,165.4,165.37,2.2373]
[1717490436733,2.2366,165.43,165.38,2.2372]
[1717490436941,7.0,165.4,165.38,2.2372]
[1717490437131,7.0,165.41,165.38,2.2372]
[1717490438713,28.6874,165.46,165.39,2.237]
[1717490438714,2.2364,165.44,165.39,2.237]
[1717490439123,7.0,165.43,165.39,2.237]
[1717490439530,9.2366,165.43,165.39,2.237]
[1717490439731,7.0,165.42,165.38,2.2372]
[1717490440124,2.2366,165.43,165.38,2.2372]
[1717490440445,7.0,165.41,165.38,2.2372]
[1717490440627,7.0,165.4,165.37,2.2373]
[1717490441413,7.0,165.39,165.37,2.2373]
[1717490442923,7.0,165.38,165.36,2.2375]
[1717490444633,7.0,165.39,165.36,2.2375]
[1717490445949,7.0,165.4,165.36,2.2375]
[1717490446445,2.2369,165.41,165.37,2.2374]
[1717490446648,7.0,165.4,165.37,2.2374]
[1717490447740,7.0,165.4,165.36,2.2374]
[1717490447951,7.0,165.39,165.36,2.2374]
[1717490448445,2.237,165.4,165.36,2.2374]
[1717490448743,7.0,165.39,165.36,2.2374]
[1717490450139,7.0,165.39,165.35,2.2376]
[1717490450324,7.0,165.38,165.35,2.2376]
[1717490452447,7.0,165.37,165.34,2.2377]
[1717490455651,7.0,165.38,165.35,2.2376]
[1717490457434,7.0,165.38,165.34,2.2377]
[1717490460453,7.0,165.37,165.34,2.2377]
[1717490460661,7.0,165.36,165.34,2.2377]
[1717490460840,7.0,165.36,165.3,6.5982]
[1717490461041,2.2374,165.37,165.32,2.238]
[1717490461042,7.0,165.35,165.32,2.238]
[1717490461939,7.0,165.35,165.33,2.2379]
[1717490462144,7.0,165.36,165.33,2.2379]
[1717490464560,7.0,165.36,165.32,2.238]
[1717490464946,9.2375,165.36,165.32,2.238]
[1717490466054,3.02387991,165.39,165.31,2.2381]
[1717490466055,9.2377,165.35,165.31,2.2381]
[1717490466854,2.2375,165.36,165.31,2.2381]
[1717490467061,7.0,165.35,165.32,2.238]
[1717490467452,9.2375,165.36,165.32,2.238]
[1717490468348,2.2374,165.37,165.33,2.2378]
[1717490468541,9.2374,165.37,165.33,2.2378]
[1717490469254,2.2374,165.37,165.33,2.2378]
[1717490469463,9.2374,165.37,165.33,2.2378]
[1717490471076,2.2373,165.38,165.33,2.2378]
[1717490471253,2.2371,165.39,165.34,2.2377]
[1717490471581,9.2371,165.39,165.34,2.2377]
[1717490471751,2.2372,165.38,165.34,2.2377]
[1717490472248,9.2372,165.38,165.34,2.2377]
[1717490472867,9.2372,165.38,165.33,2.2378]
[1717490474373,8.947,165.42,165.32,4.4761]
[1717490474683,2.237,165.4,165.36,2.2374]
[1717490474880,9.237,165.4,165.36,2.2374]
[1717490475177,9.237,165.4,165.35,2.2376]
[1717490475859,7.0,165.39,165.35,2.2376]
[1717490477554,9.237,165.4,165.35,2.2376]
[1717490478273,2.2371,165.39,165.35,2.2376]
[1717490478678,2.237,165.4,165.35,2.2376]
[1717490478972,9.237,165.4,165.35,2.2376]
[1717490479478,7.0,165.4,165.36,2.2375]
[1717490480363,9.237,165.4,165.36,2.2375]
[1717490481678,7.0,165.4,165.36,2.2375]
[1717490482972,9.237,165.4,165.36,2.2375]
[1717490483489,9.237,165.4,165.35,2.2376]
[1717490484185,7.0,165.39,165.35,2.2376]
[1717490486666,7.0,165.39,165.36,2.2375]
[1717490487686,7.0,165.4,165.36,2.2375]
[1717490490499,7.0,165.39,165.36,2.2375]
[1717490492164,7.0,165.4,165.36,2.2375]
[1717490492361,2.2367,165.42,165.37,2.2373]
[1717490492599,9.2367,165.42,165.38,2.2372]
[1717490492765,2.2367,165.42,165.38,2.2372]
[1717490492968,7.0,165.42,165.38,2.2372]
[1717490493493,9.2367,165.42,165.38,2.2372]
[1717490493721,9.2367,165.42,165.37,2.2373]
[1717490494522,2.2367,165.42,165.37,2.2373]
[1717490494689,9.2367,165.42,165.37,2.2373]
[1717490496433,2.2367,165.42,165.38,2.2372]
[1717490496724,4.4727,165.45,165.38,2.2372]
[1717490496725,9.2366,165.43,165.38,2.2372]
[1717490497027,2.2366,165.43,165.38,2.2372]
[1717490497229,2.2365,165.44,165.39,2.2371]
[1717490497533,9.2365,165.44,165.39,8.5436]
[1717490497898,9.2363,165.45,165.39,13.3065]
[1717490498097,2.2363,165.45,165.4,7.0]
[1717490499213,2.2363,165.45,165.41,2.2368]
[1717490500027,2.2363,165.45,165.41,8.5524]
[1717490500396,8.944,165.48,165.41,8.5524]
[1717490500397,9.2362,165.46,165.41,8.5524]
[1717490504825,7.0,165.46,165.42,2.2367]
[1717490505826,9.2361,165.46,165.42,2.2367]
[1717490509036,4.79631025,165.52,165.42,4.4733]
[1717490509220,2.2359,165.48,165.43,2.2365]
[1717490509415,7.0,165.47,165.43,2.2365]
[1717490510118,9.2359,165.48,165.43,2.2365]
[1717490511933,7.0,165.47,165.43,2.2365]
[1717490512117,7.0,165.46,165.42,2.2366]
[1717490512510,7.0,165.45,165.42,2.2366]
[1717490514043,7.0,165.46,165.42,2.2366]
[1717490515554,7.0,165.45,165.39,4.4741]
[1717490515733,7.0,165.45,165.41,2.2367]
[1717490516246,7.0,165.44,165.41,2.2367]
[1717490517332,7.0,165.45,165.42,2.2367]
[1717490520346,7.0,165.45,165.41,2.2368]
[1717490521846,7.0,165.45,165.42,2.2367]
[1717490525267,9.2363,165.45,165.41,2.2368]
[1717490525562,7.0,165.44,165.41,2.2368]
[1717490526778,7.0,165.43,165.4,2.2369]
[1717490528041,7.0,165.42,165.4,2.2369]
[1717490536658,7.0,165.43,165.4,2.2369]
[1717490541969,7.0,165.42,165.4,2.2369]
[1717490545347,7.0,165.41,165.35,5.5269736]
[1717490545547,7.0,165.4,165.35,5.5269736]
[1717490545747,11.1818,165.45,165.35,18.5835736]
[1717490545953,7.0,165.41,165.35,18.5835736]
[1717490546354,7.0,165.41,165.35,12.5269736]
[1717490546763,7.0,165.41,165.37,2.2373]
[1717490547971,9.2368,165.41,165.37,2.2373]
[1717490550680,7.0,165.4,165.37,2.2373]
[1717490556588,7.0,165.4,165.34,7.5918274]
[1717490556762,4.4734,165.42,165.34,1.0520274]
[1717490556968,9.2373,165.38,165.31,13.4287]
[1717490557177,9.2373,165.38,165.34,2.2377]
[1717490557587,7.0,165.38,165.34,2.2377]
[1717490557962,2.2371,165.39,165.34,2.2377]
[1717490557963,9.2371,165.39,165.34,2.2377]
[1717490561280,2.2372,165.38,165.34,2.2377]
[1717490561470,2.2372,165.38,165.34,4.05095714]
[1717490562377,2.2372,165.38,165.34,2.2377]
[1717490562582,9.2372,165.38,165.34,2.2377]
[1717490564493,2.2372,165.38,165.34,2.2377]
[1717490564680,9.2372,165.38,165.34,2.2377]
[1717490566294,2.2372,165.38,165.33,2.2378]
[1717490566591,2.2372,165.38,165.34,2.2377]
[1717490566764,2.2372,165.39,165.34,2.2376]
[1717490566969,2.2372,165.39,165.35,2.2376]
[1717490568898,2.2373,165.38,165.34,2.2377]
[1717490585918,6.0146,165.44,165.36,7.0]
[1717490586120,13.4184,165.45,165.38,2.2371]
[1717490586416,2.2367,165.42,165.38,2.2372]
[1717490586910,9.2367,165.42,165.37,2.2373]
[1717490587419,9.2367,165.42,165.35,7.0]
[1717490587420,9.2367,165.42,165.38,2.2372]
[1717490588001,9.2368,165.41,165.37,2.2373]
[1717490589315,7.0,165.41,165.37,2.2373]
[1717490593527,7.0,165.41,165.38,2.2372]
[1717490595527,7.0,165.41,165.37,2.2373]
[1717490596832,7.0,165.41,165.38,2.2372]
[1717490597935,7.0,165.41,165.37,2.2373]
[1717490598525,7.0,165.41,165.38,2.2372]
[1717490600733,2.2367,165.42,165.38,2.2372]
[1717490600927,7.0,165.41,165.39,2.2371]
[1717490601118,7.0,165.41,165.38,2.2372]
[1717490603237,7.0,165.42,165.39,2.2371]
[1717490603432,2.2366,165.43,165.39,2.2371]
[1717490603613,7.0,165.43,165.4,2.2369]
[1717490605009,2.2365,165.44,165.39,2.237]
[1717490605229,9.2365,165.44,165.4,2.2369]
[1717490605732,2.2365,165.44,165.4,2.2369]
[1717490606627,7.0,165.45,165.41,2.2368]
[1717490606835,2.2362,165.46,165.41,2.2368]
[1717490607128,9.2362,165.46,165.41,2.2368]
[1717490607311,2.2363,165.45,165.41,2.2368]
[1717490609326,9.2363,165.45,165.41,2.2368]
[1717490610407,2.2362,165.46,165.42,2.2366]
[1717490610709,9.2362,165.46,165.42,2.2366]
[1717490611355,7.0,165.46,165.42,2.2366]
[1717490613334,2.2361,165.47,165.42,2.2366]
[1717490613634,7.0,165.46,165.42,2.2366]
[1717490613854,9.2362,165.46,165.42,2.2366]
[1717490615441,7.0,165.46,165.42,2.2366]
[1717490615643,7.0,165.46,165.43,2.2365]
[1717490616544,2.2361,165.47,165.43,2.2365]
[1717490616857,6.3094,165.52,165.43,7.0]
[1717490617148,8.9402,165.55,165.47,2.236]
[1717490617149,2.2355,165.51,165.47,2.236]
[1717490617359,2.2355,165.51,165.48,2.2359]
[1717490617360,7.0,165.51,165.48,2.2359]
[1717490617521,9.2354,165.52,165.47,2.2359]
[1717490617721,7.0,165.5,165.46,2.2361]
[1717490617954,2.2355,165.51,165.46,2.2361]
[1717490618137,7.0,165.5,165.46,2.2361]
[1717490619030,2.2355,165.51,165.46,2.2361]
[1717490619356,7.0,165.5,165.46,2.2361]
[1717490620031,2.2355,165.51,165.46,2.2361]
[1717490620418,2.2354,165.52,165.47,2.236]
[1717490620623,7.0,165.5,165.47,2.236]
[1717490622044,2.2354,165.52,165.47,2.236]
[1717490622250,7.0,165.51,165.47,2.236]
[1717490623335,9.2355,165.51,165.47,2.236]
[1717490624167,2.2354,165.52,165.47,2.236]
[1717490624340,7.0,165.51,165.47,2.236]
[1717490625243,9.2355,165.51,165.47,2.236]
[1717490625555,2.2355,165.51,165.47,2.236]
[1717490625763,9.2355,165.51,165.47,2.236]
[1717490626152,7.0,165.51,165.47,2.236]
[1717490627138,9.2355,165.51,165.47,2.236]
[1717490627659,7.0,165.5,165.47,2.236]
[1717490628765,2.2355,165.51,165.47,2.236]
[1717490629066,7.0,165.5,165.47,2.236]
[1717490629260,2.2355,165.51,165.47,2.236]
[1717490629560,7.0,165.5,165.47,2.236]
[1717490629765,2.2355,165.51,165.47,2.236]
[1717490629971,7.0,165.5,165.47,2.236]
[1717490631357,2.2355,165.51,165.47,2.236]
[1717490631669,7.0,165.5,165.47,2.236]
[1717490642463,2.2355,165.51,165.47,2.236]
[1717490642763,7.0,165.5,165.47,2.236]
[1717490644974,7.0,165.5,165.46,2.2361]
[1717490645381,7.0,165.5,165.47,2.236]
[1717490646456,2.2354,165.52,165.44,137.7276]
[1717490646657,7.0,165.51,165.47,2.2359]
[1717490647259,2.2354,165.52,165.48,2.2358]
[1717490647592,7.0,165.51,165.48,2.2358]
[1717490648177,7.0,165.51,165.47,2.2359]
[1717490648375,9.2355,165.51,165.47,2.2359]
[1717490649056,7.0,165.5,165.47,2.2359]
[1717490650273,7.49122575,165.54,165.47,2.2359]
[1717490650466,7.0,165.5,165.47,2.2359]
[1717490655576,2.2355,165.51,165.47,2.2359]
[1717490655780,7.0,165.5,165.47,2.2359]
[1717490655981,2.2354,165.52,165.47,2.2359]
[1717490656185,9.2354,165.52,165.47,8.8148]
[1717490656382,2.2354,165.52,165.47,8.8148]
[1717490656571,9.2354,165.52,165.48,1.20817683]
[1717490657591,2.2355,165.51,165.47,8.8148]
[1717490658081,9.2355,165.51,165.47,8.8148]
[1717490663897,7.0,165.5,165.47,8.8148]
[1717490664296,7.0,165.5,165.48,6.0106]
[1717490664487,2.2355,165.51,165.48,6.0106]
[1717490665597,9.2354,165.52,165.48,6.0106]
[1717490671302,2.2355,165.51,165.48,6.0106]
[1717490673691,9.2355,165.51,165.48,6.0106]
[1717490674613,2.2356,165.5,165.46,8.3098]
[1717490675123,9.2356,165.5,165.46,8.3098]
[1717490677190,7.0,165.5,165.46,8.3098]
[1717490681913,7.0,165.5,165.47,2.236]
[1717490687236,9.2356,165.5,165.46,8.3098]
[1717490687524,7.0,165.5,165.46,8.3098]
[1717490688932,7.0,165.5,165.47,2.236]
[1717490696228,9.2357,165.5,165.46,8.3098]
[1717490696542,4.471,165.51,165.44,2.2364]
[1717490696703,7.0,165.47,165.44,2.2364]
[1717490697416,7.0,165.47,165.45,2.2363]
[1717490699832,7.0,165.47,165.42,6.1968]
[1717490700231,2.2359,165.48,165.43,2.2365]
[1717490700409,7.0,165.46,165.43,2.2365]
[1717490700607,7.0,165.44,165.41,2.2368]
[1717490700915,7.0,165.43,165.4,2.2369]
[1717490703045,7.0,165.42,165.39,2.2371]
[1717490703409,2.2366,165.43,165.39,2.2371]
[1717490703629,7.0,165.41,165.39,2.2371]
[1717490704633,2.2365,165.44,165.4,2.2369]
[1717490704842,11.0217,165.5,165.39,120.0]
[1717490705048,2.2359,165.48,165.43,2.2365]
[1717490705237,7.0,165.47,165.41,11.4735]
[1717490705427,7.0,165.47,165.44,2.2363]
[1717490705933,2.2356,165.5,165.42,4.4731]
[1717490706147,7.0,165.48,165.42,18.1832]
[1717490706528,7.0,165.48,165.45,2.2362]
[1717490709541,7.0,165.47,165.44,2.2364]
[1717490709747,7.0,165.46,165.44,2.2364]
[1717490712552,7.0,165.45,165.43,2.2365]
[1717490716152,7.0,165.45,165.42,2.2367]
[1717490716330,7.0,165.44,165.42,2.2367]
[1717490717225,7.0,165.45,165.42,2.2367]
[1717490722558,7.0,165.43,165.41,2.2368]
[1717490722848,7.0,165.42,165.4,2.2369]